bitfinex/quotes_BTCUSD_20251104
["timestamp","ask_amount","ask_price","bid_price","bid_amount"]
[1762276532875,0.19929703,101370.0,101360.0,0.00314591]
[1762276533524,0.19929703,101370.0,101360.0,0.00618591]
[1762276533654,0.19929703,101370.0,101360.0,0.00318591]
[1762276533858,0.31433095,101370.0,101360.0,0.00168729]
[1762276534062,0.31433095,101370.0,101360.0,0.00268729]
[1762276534287,0.29848703,101370.0,101360.0,0.00468729]
[1762276534500,0.31631397,101370.0,101360.0,0.00468729]
[1762276534702,0.31431397,101370.0,101360.0,0.00268729]
[1762276534907,0.31431397,101370.0,101360.0,0.00168729]
[1762276535109,0.21712397,101370.0,101360.0,0.00368729]
[1762276535315,0.19929703,101370.0,101360.0,0.00368729]
[1762276535517,0.29848703,101370.0,101360.0,0.00368729]
[1762276535957,0.53731649,101360.0,101350.0,1e-08]
[1762276536091,0.77607985,101360.0,101350.0,1e-08]
[1762276536278,0.75827254,101360.0,101350.0,1e-08]
[1762276536482,0.73427254,101360.0,101350.0,1e-08]
[1762276536708,0.77606429,101360.0,101350.0,1e-08]
[1762276536906,0.75827254,101360.0,101350.0,1e-08]
[1762276537133,0.77606698,101360.0,101350.0,1e-08]
[1762276537366,0.76027254,101360.0,101350.0,0.00200001]
[1762276537586,0.19737491,101330.0,101320.0,0.00024]
[1762276537723,0.19737491,101330.0,101310.0,0.46627358]
[1762276537724,0.58739439,101320.0,101310.0,0.46627358]
[1762276538005,0.53739439,101320.0,101310.0,0.4664193]
[1762276538247,0.63658439,101320.0,101310.0,0.4664193]
[1762276538457,0.19672675,101320.0,101310.0,0.51507891]
[1762276538667,0.19739439,101320.0,101310.0,0.51507891]
[1762276539165,0.19739439,101320.0,101310.0,0.4664193]
[1762276539368,0.24381491,101330.0,101310.0,0.66383317]
[1762276539589,0.04644,101330.0,101320.0,0.19739439]
[1762276539735,0.20724033,101340.0,101320.0,0.19739439]
[1762276539736,0.1973563,101340.0,101320.0,0.19739439]
[1762276539935,0.30240594,101350.0,101330.0,0.19737491]
[1762276540136,0.29508254,101360.0,101340.0,0.19735543]
[1762276540297,0.19733596,101350.0,101330.0,0.20724365]
[1762276540503,0.24375649,101360.0,101340.0,0.29512148]
[1762276540971,0.19733596,101350.0,101340.0,0.09776605]
[1762276541360,0.19733596,101350.0,101340.0,0.29512148]
[1762276541564,0.003,101350.0,101340.0,0.29512148]
[1762276541768,0.003,101350.0,101340.0,0.29755148]
[1762276541940,0.24375844,101360.0,101350.0,0.19733596]
[1762276541941,0.19731844,101360.0,101350.0,0.19733596]
[1762276542144,0.19733596,101350.0,101340.0,0.29755148]
[1762276542555,0.20716188,101370.0,101350.0,0.19733596]
[1762276542763,0.19731649,101360.0,101340.0,0.30741925]
[1762276542971,0.20716188,101370.0,101350.0,0.19733596]
[1762276543198,0.25363547,101380.0,101360.0,0.29508254]
[1762276543199,0.1973316,101380.0,101360.0,0.29508254]
[1762276543384,0.19727756,101380.0,101370.0,0.19729703]
[1762276543585,0.19736422,101390.0,101370.0,0.00243]
[1762276543913,0.19751016,101390.0,101380.0,0.09776605]
[1762276544264,0.00014594,101390.0,101380.0,0.30478387]
[1762276544535,0.00014594,101390.0,101380.0,0.30721387]
[1762276544754,0.00141516,101400.0,101380.0,0.30721387]
[1762276544755,0.00141516,101400.0,101390.0,0.19725811]
[1762276544960,0.00141516,101400.0,101390.0,0.19954811]
[1762276545133,0.19725811,101390.0,101380.0,0.06809077]
[1762276545309,0.19865381,101400.0,101380.0,0.30478321]
[1762276545539,0.19865381,101400.0,101380.0,0.30707321]
[1762276545750,0.19725811,101390.0,101380.0,0.15992926]
[1762276545969,0.19725811,101390.0,101380.0,0.10850631]
[1762276546177,0.19865381,101400.0,101380.0,0.20930782]
[1762276546178,0.00141516,101400.0,101380.0,0.20930782]
[1762276546392,0.00141516,101400.0,101390.0,0.29731416]
[1762276546525,0.25360569,101440.0,101410.0,0.1972192]
[1762276546716,0.19718032,101430.0,101420.0,0.19719717]
[1762276546919,0.0382166,101430.0,101420.0,0.23859893]
[1762276547171,0.0382166,101430.0,101420.0,0.23860152]
[1762276547595,0.00048738,101440.0,101420.0,0.30756564]
[1762276547797,0.45095054,101470.0,101460.0,0.19712201]
[1762276547798,0.02046575,101470.0,101460.0,0.19712201]
[1762276548028,0.02046575,101470.0,101460.0,0.00974026]
[1762276548029,0.02061189,101470.0,101460.0,0.00974026]
[1762276548230,0.24738185,101470.0,101460.0,0.00974026]
[1762276548691,0.21771448,101470.0,101460.0,0.00974026]
[1762276548898,0.28643734,101470.0,101460.0,0.00974026]
[1762276549092,0.19713702,101460.0,101440.0,0.19715936]
[1762276549333,0.21758887,101460.0,101450.0,0.09776605]
[1762276549776,0.21758887,101460.0,101430.0,0.63494522]
[1762276549777,0.02046575,101460.0,101430.0,0.63494522]
[1762276549961,0.02046575,101460.0,101430.0,0.09776605]
[1762276549962,0.07765634,101460.0,101430.0,0.09776605]
[1762276550114,0.19716088,101440.0,101430.0,0.09776605]
[1762276550319,0.21762663,101440.0,101430.0,0.09776605]
[1762276550822,0.21762663,101440.0,101430.0,0.29494637]
[1762276550985,0.19718032,101430.0,101420.0,0.19719976]
[1762276551202,0.19716088,101440.0,101430.0,0.29894614]
[1762276551395,0.19716088,101440.0,101430.0,0.10176605]
[1762276551566,0.20701146,101460.0,101430.0,0.29894637]
[1762276551928,0.20701146,101460.0,101450.0,0.001]
[1762276552070,0.19714144,101450.0,101440.0,0.19716002]
[1762276552250,0.19730148,101460.0,101440.0,0.24775656]
[1762276552461,0.1972725,101460.0,101440.0,0.24774313]
[1762276552665,0.19714144,101450.0,101440.0,0.24774313]
[1762276552866,0.19714144,101450.0,101440.0,0.05059654]
[1762276553069,0.19839152,101450.0,101440.0,0.05059654]
[1762276553496,0.19839152,101450.0,101440.0,0.24975742]
[1762276553676,0.19839152,101450.0,101440.0,0.05259654]
[1762276553876,0.00125008,101450.0,101440.0,0.24975742]
[1762276554110,0.00125008,101450.0,101440.0,0.05059654]
[1762276554441,0.19718032,101430.0,101420.0,0.04921468]
[1762276554662,0.19718032,101430.0,101420.0,0.24641444]
[1762276554803,0.19716088,101440.0,101420.0,0.24641444]
[1762276555005,0.19716088,101440.0,101430.0,0.09776605]
[1762276555206,0.19914144,101450.0,101430.0,0.29494637]
[1762276555411,0.19714144,101450.0,101440.0,0.19716088]
[1762276555651,0.19714144,101450.0,101430.0,0.35006845]
[1762276555866,0.002,101450.0,101440.0,0.19916088]
[1762276556264,0.00014612,101460.0,101450.0,0.19714144]
[1762276556581,0.00014612,101460.0,101450.0,0.29490749]
[1762276556735,0.00014612,101460.0,101450.0,0.34431433]
[1762276557729,0.00014612,101460.0,101450.0,1.11457372]
[1762276557940,0.00214612,101460.0,101450.0,1.11857372]
[1762276558144,0.00214612,101460.0,101450.0,1.50497372]
[1762276558357,0.00214612,101460.0,101450.0,1.5249737]
[1762276558557,0.00214612,101460.0,101450.0,0.39471433]
[1762276559333,0.00214612,101460.0,101450.0,0.39071433]
[1762276559513,0.00014612,101460.0,101450.0,0.39071433]
[1762276559866,0.00314612,101460.0,101450.0,0.39271433]
[1762276560116,0.00214612,101460.0,101450.0,0.39271433]
[1762276560293,0.00214612,101460.0,101450.0,0.73271433]
[1762276560474,0.00364606,101460.0,101450.0,0.39271433]
[1762276561678,0.20076807,101460.0,101450.0,0.002]
[1762276561893,0.19716088,101440.0,101430.0,0.15288813]
[1762276562109,0.19716088,101440.0,101420.0,0.24641444]
[1762276562548,0.19715724,101450.0,101420.0,0.25627442]
[1762276562742,0.19718032,101430.0,101420.0,0.20705974]
[1762276562898,0.19718032,101430.0,101410.0,0.20707445]
[1762276563102,0.20701431,101450.0,101430.0,0.19718032]
[1762276563103,0.19715724,101450.0,101430.0,0.19718032]
[1762276563678,0.19718032,101430.0,101410.0,0.20707445]
[1762276563885,0.19719976,101420.0,101400.0,0.2751371]
[1762276564071,0.19718032,101430.0,101400.0,0.2751371]
[1762276564072,0.19718032,101430.0,101420.0,0.19719976]
[1762276564276,0.19719976,101420.0,101410.0,0.09776605]
[1762276564494,0.1972192,101410.0,101400.0,0.06263664]
[1762276564709,0.19723865,101400.0,101390.0,0.09776605]
[1762276564911,0.19723865,101400.0,101370.0,0.19724394]
[1762276564912,0.19725811,101390.0,101370.0,0.19729513]
[1762276565068,0.20710058,101400.0,101380.0,0.29504361]
[1762276565284,0.30334016,101410.0,101390.0,0.19725482]
[1762276565285,0.19721967,101410.0,101390.0,0.19725482]
[1762276565595,0.19723865,101400.0,101390.0,0.19725482]
[1762276565815,0.19721967,101410.0,101390.0,0.19725811]
[1762276565985,0.19719976,101420.0,101400.0,0.2950047]
[1762276566191,0.1972192,101410.0,101400.0,0.09776605]
[1762276566394,0.00986193,101400.0,101370.0,0.00048738]
[1762276566594,0.1972772,101390.0,101380.0,0.19727756]
[1762276566840,0.20713539,101400.0,101380.0,0.19727756]
[1762276567048,0.20713539,101400.0,101370.0,0.00048738]
[1762276567253,0.19727756,101380.0,101370.0,0.00048738]
[1762276567578,0.19725811,101390.0,101370.0,0.19778441]
[1762276567784,0.19727346,101400.0,101380.0,0.09776605]
[1762276567982,0.1972192,101410.0,101400.0,0.002]
[1762276568182,0.19725811,101390.0,101380.0,0.00019954]
[1762276568416,0.24426811,101390.0,101380.0,0.00019954]
[1762276568614,0.34052811,101390.0,101380.0,0.00019954]
[1762276569090,0.39252811,101390.0,101380.0,0.00019954]
[1762276569291,0.70652811,101390.0,101380.0,0.00019954]
[1762276570034,0.68152811,101390.0,101380.0,0.00019954]
[1762276570867,0.67952811,101390.0,101380.0,0.00019954]
[1762276571074,0.67926674,101390.0,101380.0,0.00019954]
[1762276571291,0.53729703,101370.0,101360.0,0.00141545]
[1762276571508,0.19737491,101330.0,101320.0,0.0002]
[1762276571704,0.19737491,101330.0,101320.0,0.00034594]
[1762276572325,0.19737491,101330.0,101320.0,0.19774033]
[1762276572521,0.19735543,101340.0,101320.0,0.19774033]
[1762276572951,0.35049222,101350.0,101330.0,0.19737491]
[1762276572952,0.20722222,101350.0,101330.0,0.19737491]
[1762276573156,0.19736222,101360.0,101340.0,0.19735543]
[1762276573509,0.19736222,101360.0,101330.0,0.20724365]
[1762276573710,0.19733596,101350.0,101330.0,0.20724365]
[1762276573927,0.19735543,101340.0,101330.0,0.20724365]
[1762276574096,0.24669703,101370.0,101350.0,0.19733596]
[1762276574448,0.24369703,101370.0,101350.0,0.19733596]
[1762276574803,0.19731384,101390.0,101370.0,0.19729703]
[1762276574973,0.19731384,101390.0,101380.0,0.19727756]
[1762276575118,0.19731384,101390.0,101340.0,1.08524863]
[1762276575119,0.19727756,101380.0,101340.0,0.09776605]
[1762276575325,0.19732153,101360.0,101340.0,0.19734842]
[1762276575528,0.19733596,101350.0,101340.0,0.19734842]
[1762276575723,0.2012979,101370.0,101340.0,0.30498224]
[1762276575938,0.2012979,101370.0,101360.0,0.19731649]
[1762276576140,0.20129703,101370.0,101350.0,0.19733389]
[1762276576355,0.19731649,101360.0,101340.0,0.09791199]
[1762276576567,0.19733596,101350.0,101340.0,0.09791199]
[1762276576779,0.19733596,101350.0,101340.0,0.29526742]
[1762276576988,0.20490723,101370.0,101360.0,0.19731649]
[1762276576989,0.19504238,101370.0,101360.0,0.19731649]
[1762276577222,0.20714143,101380.0,101360.0,0.19731649]
[1762276577453,0.19729703,101370.0,101360.0,0.04045167]
[1762276577660,0.19727756,101380.0,101370.0,0.19729703]
[1762276577867,0.19727756,101380.0,101360.0,0.29508254]
[1762276578232,0.19731384,101390.0,101380.0,0.19727756]
[1762276578431,0.20027756,101380.0,101370.0,0.19729703]
[1762276578680,0.19725818,101390.0,101370.0,0.24291175]
[1762276578952,0.19725818,101390.0,101380.0,0.09776605]
[1762276579170,0.19729703,101370.0,101360.0,0.09876605]
[1762276579390,0.19729703,101370.0,101360.0,0.09891199]
[1762276579609,0.19729703,101370.0,101360.0,0.00114594]
[1762276580067,0.36395703,101370.0,101360.0,0.00114594]
[1762276580311,0.70395703,101370.0,101360.0,0.00014594]
[1762276580541,0.70395703,101370.0,101360.0,1e-08]
[1762276580768,0.53731649,101360.0,101350.0,0.00025033]
[1762276580992,0.65757649,101360.0,101350.0,0.00025033]
[1762276583384,0.24379439,101320.0,101310.0,0.4664193]
[1762276583812,0.34017439,101320.0,101310.0,0.4664193]
[1762276584033,0.24379439,101320.0,101310.0,0.4664193]
[1762276584459,0.19739439,101320.0,101310.0,0.4664193]
[1762276584629,0.19739439,101320.0,101310.0,0.66483317]
[1762276584910,0.20139439,101320.0,101310.0,0.4674193]
[1762276585123,0.29777439,101320.0,101310.0,0.4674193]
[1762276585327,0.29377439,101320.0,101310.0,0.4664193]
[1762276585660,0.65777439,101320.0,101310.0,0.4664193]
[1762276585932,0.53741387,101310.0,101300.0,0.02017681]
[1762276586156,0.72868978,101310.0,101300.0,0.02017681]
[1762276586606,0.75268978,101310.0,101300.0,0.02017681]
[1762276586831,0.72868978,101310.0,101300.0,0.02017681]
[1762276587491,0.72868978,101310.0,101300.0,0.02021681]
[1762276587715,0.76268978,101310.0,101300.0,0.02021681]
[1762276587948,0.76268978,101310.0,101300.0,0.02025681]
[1762276588170,0.41268978,101310.0,101300.0,0.02029681]
[1762276588402,0.29330978,101310.0,101300.0,0.02029681]
[1762276588621,0.39468978,101310.0,101300.0,0.02029681]
[1762276588878,0.39468978,101310.0,101300.0,0.2189825]
[1762276588879,0.00614591,101310.0,101300.0,0.2189825]
[1762276589099,0.20455978,101310.0,101300.0,0.2189825]
[1762276589316,0.00714591,101310.0,101300.0,0.2189825]
[1762276589539,0.20455978,101310.0,101300.0,0.11931519]
[1762276589758,0.19741387,101310.0,101300.0,0.02154914]
[1762276589995,0.29379387,101310.0,101300.0,0.02154914]
[1762276590212,0.53743336,101300.0,101290.0,0.12705188]
[1762276590421,0.19743336,101300.0,101290.0,0.12705188]
[1762276590636,0.24387336,101300.0,101290.0,0.12705188]
[1762276591168,0.29159336,101300.0,101290.0,0.12705188]
[1762276591425,0.20041387,101310.0,101290.0,0.12705188]
[1762276591426,0.009,101310.0,101300.0,0.19743336]
[1762276591623,0.006,101310.0,101300.0,0.31694941]
[1762276592448,0.006,101310.0,101300.0,0.29519941]
[1762276592644,0.19739531,101320.0,101310.0,0.19741387]
[1762276592845,0.19739439,101320.0,101310.0,0.21916387]
[1762276593066,0.19741387,101310.0,101300.0,0.29519941]
[1762276593278,0.19739439,101320.0,101300.0,0.29519941]
[1762276593478,0.19741387,101310.0,101300.0,0.09776605]
[1762276593744,0.19741387,101310.0,101290.0,0.35612737]
[1762276593745,0.19843336,101300.0,101290.0,0.32750473]
[1762276593962,0.001,101300.0,101290.0,0.327991]
[1762276594173,0.19741436,101310.0,101290.0,0.324991]
[1762276594341,0.001,101310.0,101300.0,0.30223941]
[1762276594511,0.19841387,101310.0,101300.0,0.10484605]
[1762276594712,0.19741387,101310.0,101300.0,0.09788605]
[1762276595115,0.19741387,101310.0,101300.0,0.29535941]
[1762276595325,0.2072641,101320.0,101300.0,0.29535941]
[1762276595542,0.19741387,101310.0,101300.0,0.10296605]
[1762276595917,0.19841387,101310.0,101300.0,0.10300605]
[1762276596158,0.19841387,101310.0,101300.0,0.10304605]
[1762276596319,0.19841387,101310.0,101300.0,0.10308605]
[1762276596563,0.003,101310.0,101300.0,0.30555941]
[1762276596940,0.20041387,101310.0,101300.0,0.30559941]
[1762276597247,0.20041387,101310.0,101300.0,0.10820605]
[1762276597545,0.20041387,101310.0,101300.0,0.01048]
[1762276597546,0.29684387,101310.0,101300.0,0.01048]
[1762276597779,0.20041387,101310.0,101300.0,0.01048]
[1762276597988,0.20041387,101310.0,101300.0,0.01052]
[1762276598402,0.22441387,101310.0,101300.0,0.01056]
[1762276598602,0.28810217,101310.0,101300.0,0.0106]
[1762276598815,0.31210217,101310.0,101300.0,0.0106]
[1762276599224,0.28810217,101310.0,101300.0,0.0106]
[1762276599448,0.65210217,101310.0,101300.0,0.01064]
[1762276599860,0.65784387,101310.0,101300.0,0.01068]
[1762276600157,0.67826826,101310.0,101300.0,0.02452687]
[1762276600322,0.65426826,101310.0,101300.0,0.00568]
[1762276600543,0.65784387,101310.0,101300.0,0.00072]
[1762276600765,0.72399387,101310.0,101300.0,0.00272]
[1762276600988,0.74641789,101310.0,101290.0,0.1277887]
[1762276601211,0.71047517,101300.0,101290.0,0.1277887]
[1762276601421,0.19747235,101280.0,101270.0,0.34350962]
[1762276601628,0.72187557,101280.0,101270.0,0.34350962]
[1762276601845,0.83871938,101280.0,101270.0,0.34350962]
[1762276602049,0.81830557,101280.0,101270.0,0.34350962]
[1762276602274,0.81830557,101280.0,101270.0,1e-08]
[1762276602462,0.75615557,101280.0,101270.0,1e-08]
[1762276602827,0.53795952,101280.0,101270.0,1e-08]
[1762276603030,0.63438952,101280.0,101270.0,1e-08]
[1762276603615,0.65838952,101280.0,101270.0,1e-08]
[1762276604426,0.66438952,101280.0,101270.0,0.00200001]
[1762276605062,0.68576832,101280.0,101270.0,0.00300001]
[1762276605310,0.66538952,101280.0,101270.0,0.00300001]
[1762276605510,0.67538951,101280.0,101270.0,1e-08]
[1762276605876,0.75791617,101280.0,101270.0,1e-08]
[1762276606108,0.7656041,101280.0,101270.0,1e-08]
[1762276606604,0.77560409,101280.0,101270.0,1e-08]
[1762276607031,0.7656041,101280.0,101270.0,1e-08]
[1762276607239,0.7656041,101280.0,101270.0,0.00050123]
[1762276608765,0.19751135,101260.0,101250.0,0.61987132]
[1762276608979,0.24395135,101260.0,101250.0,0.61987132]
[1762276609345,0.24395135,101260.0,101250.0,0.61887132]
[1762276609484,0.26795135,101260.0,101250.0,0.61887132]
[1762276609682,0.34038135,101260.0,101250.0,0.61887132]
[1762276609879,0.24395135,101260.0,101250.0,0.61887132]
[1762276610132,0.24395135,101260.0,101250.0,0.61987132]
[1762276610328,0.26995135,101260.0,101250.0,0.61987132]
[1762276610530,0.24695135,101260.0,101250.0,0.62387132]
[1762276610939,0.24695135,101260.0,101250.0,0.62287132]
[1762276611271,0.24695135,101260.0,101250.0,0.62087132]
[1762276611636,0.24695135,101260.0,101250.0,0.16498398]
[1762276611637,0.79553135,101260.0,101250.0,0.16498398]
[1762276611836,0.6668163,101260.0,101250.0,0.16498398]
[1762276612023,0.58695135,101260.0,101250.0,0.16498398]
[1762276612224,0.24695135,101260.0,101250.0,0.19045398]
[1762276612425,0.73935135,101260.0,101250.0,0.06498398]
[1762276612669,0.76335135,101260.0,101250.0,0.06498398]
[1762276612867,0.80149266,101260.0,101250.0,0.06498398]
[1762276613071,0.79949266,101260.0,101250.0,0.06498398]
[1762276613221,0.79949266,101260.0,101250.0,0.06098398]
[1762276613222,0.71436266,101260.0,101250.0,0.06098398]
[1762276613422,0.80549266,101260.0,101250.0,0.05998398]
[1762276613624,0.53753086,101250.0,101240.0,0.00319751]
[1762276613859,0.59967217,101250.0,101240.0,0.00219751]
[1762276614080,0.59967217,101250.0,101240.0,0.00119751]
[1762276614278,0.75207217,101250.0,101240.0,0.00019751]
[1762276614484,0.19755037,101240.0,101230.0,0.03272751]
[1762276614700,0.19755037,101240.0,101230.0,0.03172751]
[1762276614858,0.5756961,101240.0,101230.0,0.03172751]
[1762276615074,0.19756989,101230.0,101220.0,0.1150145]
[1762276615350,0.54746623,101230.0,101220.0,0.1150145]
[1762276615567,0.53756989,101230.0,101220.0,0.27435831]
[1762276615775,0.56205646,101230.0,101220.0,0.11626831]
[1762276615898,0.54794377,101230.0,101220.0,0.11626831]
[1762276616099,0.58805646,101230.0,101220.0,0.11626831]
[1762276616312,0.73689646,101230.0,101220.0,0.11626831]
[1762276616528,0.76089646,101230.0,101220.0,0.11626831]
[1762276616732,0.62620494,101230.0,101220.0,0.11626831]
[1762276616962,0.62621242,101230.0,101220.0,0.11626831]
[1762276617158,0.34,101210.0,101200.0,0.15101571]
[1762276617356,0.69469893,101210.0,101200.0,0.15101571]
[1762276617541,0.78582893,101210.0,101200.0,0.15101571]
[1762276617771,0.73582893,101210.0,101200.0,0.15101571]
[1762276618095,0.79791901,101210.0,101200.0,0.15101571]
[1762276618303,0.8819927,101210.0,101200.0,0.15101571]
[1762276618443,0.87199271,101210.0,101200.0,0.15101571]
[1762276618847,0.7775279,101210.0,101200.0,0.15101571]
[1762276619099,0.79789499,101210.0,101200.0,0.15101571]
[1762276619303,0.53762845,101200.0,101190.0,0.0103]
[1762276619506,0.53762845,101200.0,101160.0,0.48124948]
[1762276619507,0.58766752,101180.0,101160.0,0.48124948]
[1762276619707,0.29416706,101170.0,101160.0,0.48124948]
[1762276619933,0.76293071,101170.0,101160.0,0.10023189]
[1762276620113,3.53772614,101150.0,101140.0,0.20004943]
[1762276620367,0.64387613,101150.0,101140.0,0.20004943]
[1762276620541,0.53778481,101120.0,101110.0,0.81342197]
[1762276620781,0.53778481,101120.0,101110.0,0.74251024]
[1762276620782,0.63393481,101120.0,101110.0,0.74251024]
[1762276620949,0.72506481,101120.0,101110.0,0.74251024]
[1762276621366,0.76752326,101120.0,101110.0,0.74251024]
[1762276621771,0.34,101090.0,101070.0,0.33977885]
[1762276621981,0.0121318,101080.0,101070.0,0.31007366]
[1762276622154,0.00213181,101080.0,101070.0,0.60560631]
[1762276622492,0.17436754,101120.0,101070.0,0.60560631]
[1762276622493,0.05243152,101120.0,101090.0,0.20771636]
[1762276622703,0.09245845,101120.0,101110.0,0.03951645]
[1762276622948,0.02148597,101120.0,101110.0,0.23832082]
[1762276623163,0.05,101140.0,101130.0,0.2372817]
[1762276623371,0.12186143,101180.0,101160.0,0.03951645]
[1762276623580,0.09113,101170.0,101160.0,0.03951645]
[1762276623753,0.29094887,101170.0,101160.0,0.03951645]
[1762276623925,0.30281705,101170.0,101160.0,0.03951645]
[1762276624138,0.44512999,101170.0,101160.0,0.03951645]
[1762276624344,0.01013974,101180.0,101160.0,0.23722305]
[1762276624544,0.05,101180.0,101170.0,0.03951645]
[1762276624985,0.14113,101180.0,101170.0,0.03951645]
[1762276625192,0.09113,101200.0,101190.0,0.03951645]
[1762276625410,0.04615,101210.0,101200.0,0.03951645]
[1762276625591,0.29004785,101220.0,101210.0,0.03951645]
[1762276625794,0.3174246,101220.0,101210.0,0.03951645]
[1762276626002,0.20754461,101190.0,101140.0,0.20759665]
[1762276626199,0.20754461,101190.0,101160.0,0.003]
[1762276626200,0.051,101170.0,101160.0,0.003]
[1762276626359,0.24868706,101170.0,101160.0,0.003]
[1762276626560,0.19772629,101150.0,101120.0,0.23697858]
[1762276626783,0.1977479,101140.0,101120.0,0.0294]
[1762276627080,0.29020471,101140.0,101120.0,0.0294]
[1762276627309,0.09245845,101140.0,101120.0,0.2271837]
[1762276627481,0.06,101130.0,101120.0,0.3248337]
[1762276627701,0.06014569,101130.0,101120.0,0.3248337]
[1762276628046,0.06014569,101130.0,101120.0,0.2271837]
[1762276628452,0.002,101180.0,101160.0,0.19770583]
[1762276628666,0.19773113,101150.0,101120.0,0.22718141]
[1762276628828,0.19776525,101130.0,101120.0,0.0294]
[1762276629037,0.19776525,101130.0,101100.0,0.1978236]
[1762276629277,0.00213181,101120.0,101090.0,0.20772996]
[1762276629458,0.19776861,101130.0,101100.0,0.29547366]
[1762276629658,0.002,101130.0,101120.0,0.20677851]
[1762276629861,0.00413181,101130.0,101120.0,0.009]
[1762276630087,0.002,101130.0,101120.0,0.30443481]
[1762276630287,0.003,101130.0,101120.0,0.30943481]
[1762276630440,0.003,101130.0,101120.0,0.014]
[1762276630654,0.00513181,101130.0,101120.0,0.30943481]
[1762276630850,0.003,101130.0,101120.0,0.014]
[1762276631055,0.34202706,101130.0,101120.0,0.005]
[1762276631256,0.051,101130.0,101120.0,0.005]
[1762276631466,0.59076525,101130.0,101120.0,0.005]
[1762276631666,0.54076525,101130.0,101120.0,0.005]
[1762276632068,0.53876525,101130.0,101120.0,0.005]
[1762276632559,0.343,101130.0,101120.0,0.05551645]
[1762276632763,0.343,101130.0,101120.0,0.25330126]
[1762276632764,0.003,101130.0,101120.0,0.25330126]
[1762276633393,0.63402706,101130.0,101120.0,0.05551645]
[1762276633597,0.68189525,101130.0,101120.0,0.05702717]
[1762276633717,0.54076525,101130.0,101120.0,0.05702717]
[1762276633920,0.59076525,101130.0,101120.0,0.05702717]
[1762276634130,0.68189525,101130.0,101120.0,0.05702717]
[1762276634346,0.34189525,101130.0,101120.0,0.05702717]
[1762276634834,0.68189525,101130.0,101120.0,0.05702717]
[1762276635029,0.19786307,101080.0,101070.0,0.31007366]
[1762276635149,0.24786307,101080.0,101070.0,0.30956221]
[1762276635354,0.24786307,101080.0,101070.0,0.30856221]
[1762276635810,0.24786307,101080.0,101070.0,0.30781881]
[1762276636011,0.05,101080.0,101070.0,0.30681881]
[1762276636269,0.05,101080.0,101070.0,0.30581881]
[1762276636474,0.004,101100.0,101080.0,0.19786105]
[1762276636590,0.24995642,101100.0,101080.0,0.29551173]
[1762276636807,0.24995674,101100.0,101080.0,0.29551173]
[1762276637017,0.24995755,101100.0,101080.0,0.19786173]
[1762276637249,0.19786307,101080.0,101050.0,0.1]
[1762276637451,0.19790378,101060.0,101050.0,0.00048597]
[1762276637650,0.05,101060.0,101050.0,0.00048597]
[1762276638061,0.33903223,101060.0,101050.0,0.00048597]
[1762276638259,0.24792182,101050.0,101040.0,0.00029258]
[1762276638374,0.00048567,101050.0,101040.0,0.00029258]
[1762276638575,0.05048567,101050.0,101020.0,0.29563039]
[1762276638805,0.05,101040.0,101020.0,0.30552676]
[1762276639009,0.00048567,101050.0,101040.0,0.1979414]
[1762276639372,0.00048567,101050.0,101010.0,0.82274927]
[1762276639373,0.05048567,101050.0,101010.0,0.82274927]
[1762276639584,0.05048567,101050.0,101020.0,0.20787789]
[1762276639756,0.09161567,101050.0,101020.0,0.20687789]
[1762276639986,0.09245845,101040.0,101020.0,0.20587789]
[1762276640142,0.09245845,101040.0,101030.0,0.197961]
[1762276640347,0.00148567,101050.0,101040.0,0.1979414]
[1762276640574,0.00148567,101050.0,101040.0,4e-05]
[1762276640762,0.00148567,101050.0,101040.0,0.1979814]
[1762276641125,0.00148567,101050.0,101020.0,0.006]
[1762276641126,0.05,101030.0,101020.0,0.006]
[1762276641326,0.05,101030.0,101020.0,0.20398059]
[1762276641526,0.00248567,101050.0,101030.0,0.19794793]
[1762276641730,0.05,101040.0,101020.0,0.21387961]
[1762276641942,0.05,101030.0,101020.0,0.21387961]
[1762276642147,0.05,101030.0,101020.0,0.006]
[1762276642354,0.05,101030.0,101020.0,0.20053504]
[1762276642689,0.05213181,101040.0,101030.0,0.197961]
[1762276642942,0.05213181,101040.0,101020.0,8e-05]
[1762276642943,0.15444999,101030.0,101020.0,8e-05]
[1762276643090,0.00213181,101040.0,101030.0,0.197961]
[1762276643091,0.09906,101040.0,101030.0,0.197961]
[1762276643298,0.00999999,101090.0,101040.0,0.1979414]
[1762276643634,0.05878811,101090.0,101070.0,0.19788265]
[1762276643841,0.11663622,101090.0,101070.0,0.00999999]
[1762276644043,0.11663622,101090.0,101040.0,0.24971425]
[1762276644044,0.05,101060.0,101040.0,0.24971425]
[1762276644194,0.04055,101070.0,101040.0,0.00014579]
[1762276644398,0.05,101050.0,101040.0,0.19808719]
[1762276644601,0.13961,101070.0,101050.0,0.19791966]
[1762276644867,0.004,101050.0,101040.0,0.00014579]
[1762276645258,0.09906,101050.0,101040.0,0.00014579]
[1762276645459,0.30098182,101050.0,101040.0,0.00014579]
[1762276645688,0.30098182,101050.0,101020.0,0.0004]
[1762276645689,0.004,101030.0,101020.0,0.0004]
[1762276645902,0.0552,101030.0,101020.0,0.00088567]
[1762276646113,0.49426,101030.0,101020.0,0.00088567]
[1762276646250,0.692221,101030.0,101020.0,0.00088567]
[1762276646660,0.70222099,101030.0,101020.0,0.00092567]
[1762276646872,0.70222099,101030.0,101010.0,0.48768291]
[1762276646873,0.20798058,101020.0,101010.0,0.48768291]
[1762276647245,0.20798058,101020.0,101000.0,35.772839]
[1762276647246,0.19800019,101010.0,101000.0,35.772839]
[1762276647420,0.24745949,101010.0,101000.0,35.772839]
[1762276647650,0.24745949,101010.0,101000.0,35.08567727]
[1762276647651,3.64226948,101010.0,101000.0,35.08567727]
[1762276647833,3.64226948,101010.0,101000.0,34.46407954]
[1762276647834,3.81004969,101010.0,101000.0,34.46407954]
[1762276648031,0.34067115,101010.0,101000.0,34.43434125]
[1762276648260,0.35226949,101010.0,101000.0,34.43434125]
[1762276648466,0.16415197,101010.0,101000.0,34.43434125]
[1762276648663,0.35226949,101010.0,101000.0,34.40762089]
[1762276648809,0.38194791,101010.0,101000.0,34.3778826]
[1762276649013,3.3720371,101010.0,101000.0,34.3779226]
[1762276649215,3.3720371,101010.0,101000.0,34.3779626]
[1762276649441,3.7120371,101010.0,101000.0,34.3789626]
[1762276649641,3.7160371,101010.0,101000.0,34.3790026]
[1762276649852,3.84354812,101010.0,101000.0,32.99570616]
[1762276650060,3.88023249,101010.0,101000.0,32.89073811]
[1762276650211,3.88023249,101010.0,101000.0,32.50155622]
[1762276650212,3.88007084,101010.0,101000.0,32.50155622]
[1762276650409,3.92753014,101010.0,101000.0,32.12298865]
[1762276650700,3.91853014,101010.0,101000.0,32.09227325]
[1762276650912,3.97644688,101010.0,101000.0,30.52052405]
[1762276651096,4.10935951,101010.0,101000.0,29.30534431]
[1762276651298,1.00535951,101010.0,101000.0,26.32775301]
[1762276651507,1.07949148,101010.0,101000.0,21.87966611]